fUST/lending_fUST_20250513
["ID","MTS","AMOUNT","RATE_DAILY","PERIOD"]
[360883996,1747099834286,-1000.0,0.00019178,2]
[360883998,1747099834297,-400.0,0.00019178,2]
[360884001,1747099834307,-400.0,0.00019178,2]
[360884003,1747099834318,-506.9452433,0.00019178,2]
[360884005,1747099834329,-151.0,0.00019178,2]
[360884007,1747099834340,-849.24,0.00019178,2]
[360884009,1747099834350,-400.0,0.00019178,2]
[360884010,1747099834360,-524.75,0.00019178,2]
[360884011,1747099834371,-400.0,0.00019178,2]
[360884012,1747099834382,-400.0,0.00019178,2]
[360884013,1747099834408,-400.0,0.00019178,2]
[360884014,1747099834419,-400.00643379,0.00019178,2]
[360884015,1747099834430,-681.76,0.00019178,2]
[360884016,1747099834441,-359.53448278,0.00019178,2]
[360884017,1747099834452,-400.0,0.00019178,2]
[360884018,1747099834463,-511.04,0.00019178,2]
[360884019,1747099834474,-400.0,0.00019178,2]
[360884020,1747099834484,-400.0,0.00019178,2]
[360884021,1747099834495,-402.16,0.00019178,2]
[360884022,1747099834504,-400.0,0.00019178,2]
[360884023,1747099834515,-400.0,0.00019178,2]
[360884024,1747099834525,-1042.83,0.00019178,2]
[360884025,1747099834536,-400.0,0.00019178,2]
[360884026,1747099834546,-554.65,0.00019178,2]
[360884027,1747099834557,-400.0,0.00019178,2]
[360884028,1747099834568,-400.0,0.00019178,2]
[360884029,1747099834578,-400.0,0.00019178,2]
[360884030,1747099834589,-400.0,0.00019178,2]
[360884031,1747099834600,-167.41963053,0.00019178,2]
[360884032,1747099834612,-400.0,0.00019178,2]
[360884033,1747099834624,-450.86,0.00019178,2]
[360884034,1747099834635,-400.0,0.00019178,2]
[360884035,1747099834646,-176.09466997,0.00019178,2]
[360884036,1747099834656,-400.0,0.00019178,2]
[360884037,1747099834666,-400.0,0.00019178,2]
[360884038,1747099834677,-400.0,0.00019178,2]
[360884039,1747099834688,-626.43,0.00019178,2]
[360884040,1747099834697,-400.0,0.00019178,2]
[360884041,1747099834708,-468.67,0.00019178,2]
[360884042,1747099834718,-400.0,0.00019178,2]
[360884043,1747099834729,-690.78,0.00019178,2]
[360884044,1747099834739,-515.42333451,0.00019178,2]
[360884045,1747099834750,-400.0,0.00019178,2]
[360884046,1747099834760,-400.0,0.00019178,2]
[360884047,1747099834771,-400.0,0.00019178,2]
[360884048,1747099834782,-400.0,0.00019178,2]
[360884049,1747099834792,-518.84713528,0.00019178,2]
[360884050,1747099834802,-400.0,0.00019178,2]
[360884051,1747099834812,-400.0,0.00019178,2]
[360884052,1747099834822,-400.0,0.00019178,2]
[360884053,1747099834833,-400.0,0.00019178,2]
[360884054,1747099834843,-928.17,0.00019178,2]
[360884055,1747099834853,-400.0,0.00019178,2]
[360884056,1747099834864,-479.97,0.00019178,2]
[360884057,1747099834875,-851.52,0.00019178,2]
[360884058,1747099834885,-400.0,0.00019178,2]
[360884059,1747099834895,-442.4,0.00019178,2]
[360884060,1747099834905,-1090.72,0.00019178,2]
[360884061,1747099834915,-400.0,0.00019178,2]
[360884062,1747099834926,-400.0,0.00019178,2]
[360884063,1747099834936,-400.0,0.00019178,2]
[360884064,1747099834947,-400.0,0.00019178,2]
[360884065,1747099834957,-410.20649079,0.00019178,2]
[360884066,1747099834971,-400.0,0.00019178,2]
[360884067,1747099834981,-400.0,0.00019178,2]
[360884068,1747099834992,-400.0,0.00019178,2]
[360884069,1747099835008,-400.0,0.00019178,2]
[360884070,1747099835020,-400.0,0.00019178,2]
[360884071,1747099835029,-400.0,0.00019178,2]
[360884072,1747099835040,-400.0,0.00019178,2]
[360884073,1747099835050,-400.0,0.00019178,2]
[360884074,1747099835062,-859.98,0.00019178,2]
[360884075,1747099835073,-400.0,0.00019178,2]
[360884076,1747099835086,-634.76,0.00019178,2]
[360884077,1747099835097,-400.0,0.00019178,2]
[360884078,1747099835108,-400.0,0.00019178,2]
[360884079,1747099835118,-400.0,0.00019178,2]
[360884080,1747099835128,-400.0,0.00019178,2]
[360884081,1747099835139,-678.2,0.00019178,2]
[360884082,1747099835150,-1067.78,0.00019178,2]
[360884083,1747099835160,-1163.97,0.00019178,2]
[360884084,1747099835170,-400.0,0.00019178,2]
[360884085,1747099835181,-598.24,0.00019178,2]
[360884086,1747099835191,-419.87534298,0.00019178,2]
[360884087,1747099835201,-400.0,0.00019178,2]
[360884088,1747099835211,-400.0,0.00019178,2]
[360884089,1747099835222,-857.84,0.00019178,2]
[360884090,1747099835232,-400.0,0.00019178,2]
[360884091,1747099835242,-400.0,0.00019178,2]
[360884092,1747099835253,-400.0,0.00019178,2]
[360884093,1747099835263,-873.24,0.00019178,2]
[360884094,1747099835274,-400.0,0.00019178,2]
[360884095,1747099835284,-400.0,0.00019178,2]
[360884096,1747099835294,-710.88,0.00019178,2]
[360884097,1747099835305,-254.52191156,0.00019178,2]
[360884098,1747099835315,-400.0,0.00019178,2]
[360884099,1747099835326,-1378.47,0.00019178,2]
[360884100,1747099835336,-400.0,0.00019178,2]
[360884101,1747099835346,-400.0,0.00019178,2]
[360884102,1747099835357,-400.0,0.00019178,2]
[360884103,1747099835367,-400.0,0.00019178,2]
[360884104,1747099835377,-400.0,0.00019178,2]
[360884105,1747099835387,-554.6,0.00019178,2]
[360884106,1747099835398,-1202.77,0.00019178,2]
[360884107,1747099835408,-400.0,0.00019178,2]
[360884108,1747099835419,-151.0,0.00019178,2]
[360884109,1747099835430,-151.0,0.00019178,2]
[360884110,1747099835440,-151.0,0.00019178,2]
[360884111,1747099835451,-400.0,0.00019178,2]
[360884112,1747099835462,-1194.14,0.00019178,2]
[360884113,1747099835472,-400.0,0.00019178,2]
[360884114,1747099835483,-400.0,0.00019178,2]
[360884115,1747099835493,-400.0,0.00019178,2]
[360884116,1747099835504,-400.0,0.00019178,2]
[360884117,1747099835514,-467.76,0.00019178,2]
[360884118,1747099835525,-400.0,0.00019178,2]
[360884119,1747099835536,-400.0,0.00019178,2]
[360884120,1747099835547,-400.0,0.00019178,2]
[360884121,1747099835558,-1600.57,0.00019178,2]
[360884122,1747099835568,-400.0,0.00019178,2]
[360884123,1747099835579,-400.0,0.00019178,2]
[360884124,1747099835590,-2051.22,0.00019178,2]
[360884125,1747099835601,-400.0,0.00019178,2]
[360884126,1747099835615,-400.0,0.00019178,2]
[360884127,1747099835626,-400.0,0.00019178,2]
[360884128,1747099835636,-400.0,0.00019178,2]
[360884129,1747099835646,-1204.28,0.00019178,2]
[360884130,1747099835658,-764.5,0.00019178,2]
[360884131,1747099835669,-400.0,0.00019178,2]
[360884132,1747099835679,-400.0,0.00019178,2]
[360884133,1747099835690,-1005.16,0.00019178,2]
[360884134,1747099835701,-400.0,0.00019178,2]
[360884135,1747099835711,-400.0,0.00019178,2]
[360884136,1747099835721,-400.0,0.00019178,2]
[360884137,1747099835732,-400.0,0.00019178,2]
[360884138,1747099835742,-400.0,0.00019178,2]
[360884139,1747099835752,-400.0,0.00019178,2]
[360884140,1747099835763,-400.0,0.00019178,2]
[360884141,1747099835774,-400.0,0.00019178,2]
[360884142,1747099835786,-407.44,0.00019178,2]
[360884143,1747099835796,-887.68,0.00019178,2]
[360884144,1747099835807,-400.0,0.00019178,2]
[360884145,1747099835817,-400.0,0.00019178,2]
[360884146,1747099835829,-400.0,0.00019178,2]
[360884147,1747099835839,-400.0,0.00019178,2]
[360884148,1747099835849,-400.0,0.00019178,2]
[360884149,1747099835860,-446.75,0.00019178,2]
[360884150,1747099835870,-265.76572977,0.00019178,2]
[360884151,1747099835880,-400.0,0.00019178,2]
[360884152,1747099835890,-429.15,0.00019178,2]
[360884153,1747099835900,-400.0,0.00019178,2]
[360884154,1747099835911,-923.19,0.00019178,2]
[360884155,1747099835921,-151.0,0.00019178,2]
[360884156,1747099835932,-151.0,0.00019178,2]
[360884157,1747099835943,-476.77,0.00019178,2]
[360884158,1747099835953,-151.0,0.00019178,2]
[360884159,1747099835964,-400.0,0.00019178,2]
[360884160,1747099835974,-400.0,0.00019178,2]
[360884161,1747099835987,-400.0,0.00019178,2]
[360884162,1747099835997,-400.0,0.00019178,2]
[360884163,1747099836007,-400.0,0.00019178,2]
[360884164,1747099836017,-400.0,0.00019178,2]
[360884165,1747099836028,-400.0,0.00019178,2]
[360884166,1747099836039,-975.94,0.00019178,2]
[360884167,1747099836051,-400.0,0.00019178,2]
[360884168,1747099836068,-615.93,0.00019178,2]
[360884169,1747099836079,-400.0,0.00019178,2]
[360884170,1747099836313,-400.0,0.00019178,2]
[360884171,1747099836366,-591.52,0.00019178,2]
[360884172,1747099836375,-751.78,0.00019178,2]
[360884173,1747099836385,-400.0,0.00019178,2]
[360884174,1747099836395,-429.56,0.00019178,2]
[360884175,1747099836405,-518.43577841,0.00019178,2]
[360884176,1747099836414,-1132.37,0.00019178,2]
[360884177,1747099836434,-650.07,0.00019178,2]
[360884178,1747099836449,-400.0,0.00019178,2]
[360884179,1747099836460,-414.25,0.00019178,2]
[360884180,1747099836470,-554.53,0.00019178,2]
[360884181,1747099836482,-400.0,0.00019178,2]
[360884182,1747099836492,-1434.46,0.00019178,2]
[360884183,1747099836503,-400.0,0.00019178,2]
[360884184,1747099836514,-400.0,0.00019178,2]
[360884185,1747099836524,-400.0,0.00019178,2]
[360884186,1747099836535,-973.07,0.00019178,2]
[360884187,1747099836545,-942.23,0.00019178,2]
[360884188,1747099836556,-563.55,0.00019178,2]
[360884189,1747099836567,-400.0,0.00019178,2]
[360884190,1747099836578,-400.0,0.00019178,2]
[360884191,1747099836588,-400.0,0.00019178,2]
[360884192,1747099836598,-400.0,0.00019178,2]
[360884193,1747099836610,-400.0,0.00019178,2]
[360884194,1747099836620,-400.0,0.00019178,2]
[360884195,1747099836631,-400.0,0.00019178,2]
[360884196,1747099836642,-400.0,0.00019178,2]
[360884197,1747099836653,-567.37,0.00019178,2]
[360884198,1747099836665,-208.01736802,0.00019178,2]
[360884199,1747099836676,-400.0,0.00019178,2]
[360884200,1747099836687,-544.87,0.00019178,2]
[360884201,1747099836699,-400.0,0.00019178,2]
[360884202,1747099836709,-400.0,0.00019178,2]
[360884203,1747099836721,-470.98451877,0.00019178,2]
[360884204,1747099836732,-400.0,0.00019178,2]
[360884205,1747099836744,-521.23,0.00019178,2]
[360884206,1747099836755,-400.0,0.00019178,2]
[360884207,1747099836766,-400.0,0.00019178,2]
[360884208,1747099836777,-400.0,0.00019178,2]
[360884209,1747099836788,-400.0,0.00019178,2]
[360884210,1747099836798,-400.0,0.00019178,2]
[360884211,1747099836809,-400.0,0.00019178,2]
[360884212,1747099836820,-1510.29,0.00019178,2]
[360884213,1747099836832,-400.0,0.00019178,2]
[360884214,1747099836843,-400.0,0.00019178,2]
[360884215,1747099836854,-400.0,0.00019178,2]
[360884216,1747099836865,-400.0,0.00019178,2]
[360884217,1747099836876,-400.0,0.00019178,2]
[360884218,1747099836887,-400.0,0.00019178,2]
[360884219,1747099836897,-362.27061248,0.00019178,2]
[360884220,1747099836908,-585.81,0.00019178,2]
[360884221,1747099836919,-2242.68,0.00019178,2]
[360884222,1747099836929,-400.0,0.00019178,2]
[360884223,1747099836939,-400.0,0.00019178,2]
[360884224,1747099836949,-400.0,0.00019178,2]
[360884225,1747099836962,-1061.09,0.00019178,2]
[360884226,1747099836975,-400.0,0.00019178,2]
[360884227,1747099836987,-1579.91,0.00019178,2]
[360884228,1747099836997,-1299.19,0.00019178,2]
[360884229,1747099837007,-318.66484189,0.00019178,2]
[360884230,1747099837018,-400.0,0.00019178,2]
[360884231,1747099837035,-400.0,0.00019178,2]
[360884232,1747099837046,-525.23,0.00019178,2]
[360884233,1747099837058,-400.0,0.00019178,2]
[360884234,1747099837069,-723.91,0.00019178,2]
[360884235,1747099837082,-1662.06,0.00019178,2]
[360884236,1747099837092,-400.0,0.00019178,2]
[360884237,1747099837104,-400.0,0.00019178,2]
[360884238,1747099837115,-589.3,0.00019178,2]
[360884239,1747099837126,-400.0,0.00019178,2]
[360884240,1747099837137,-1038.45,0.00019178,2]
[360884241,1747099837148,-400.0,0.00019178,2]
[360884242,1747099837160,-400.0,0.00019178,2]
[360884243,1747099837170,-400.0,0.00019178,2]
[360884244,1747099837182,-400.0,0.00019178,2]
[360884245,1747099837193,-400.0,0.00019178,2]
[360884246,1747099837206,-516.53,0.00019178,2]
[360884247,1747099837217,-400.0,0.00019178,2]
[360884248,1747099837228,-236.48950193,0.00019178,2]
[360884249,1747099837239,-400.0,0.00019178,2]
[360884250,1747099837250,-400.0,0.00019178,2]
[360884251,1747099837260,-151.0,0.00019178,2]
[360884252,1747099837271,-151.0,0.00019178,2]
[360884253,1747099837282,-151.0,0.00019178,2]
[360884254,1747099837292,-151.0,0.00019178,2]
[360884255,1747099837304,-400.0,0.00019178,2]
[360884256,1747099837315,-400.0,0.00019178,2]
[360884257,1747099837329,-577.49,0.00019178,2]
[360884258,1747099837339,-437.83,0.00019178,2]
[360884259,1747099837350,-151.0,0.00019178,2]
[360884260,1747099837360,-300.0,0.00019178,2]
[360884261,1747099837371,-201.648254,0.00019178,2]
[360884262,1747099837381,-400.0,0.00019178,2]
[360884263,1747099837392,-400.0,0.00019178,2]
[360884264,1747099837402,-400.0,0.00019178,2]
[360884265,1747099837413,-1304.02,0.00019178,2]
[360884266,1747099837424,-1249.28,0.00019178,2]
[360884267,1747099837434,-400.0,0.00019178,2]
[360884268,1747099837445,-710.82,0.00019178,2]
[360884269,1747099837456,-695.14,0.00019178,2]
[360884270,1747099837467,-480.71,0.00019178,2]
[360884271,1747099837479,-417.73,0.00019178,2]
[360884272,1747099837490,-400.0,0.00019178,2]
[360884273,1747099837501,-400.0,0.00019178,2]
[360884274,1747099837512,-400.0,0.00019178,2]
[360884275,1747099837522,-503.09,0.00019178,2]
[360884276,1747099837533,-401.44,0.00019178,2]
[360884277,1747099837544,-579.88,0.00019178,2]
[360884278,1747099837554,-400.0,0.00019178,2]
[360884279,1747099837565,-400.0,0.00019178,2]
[360884280,1747099837577,-669.05,0.00019178,2]
[360884281,1747099837588,-400.0,0.00019178,2]
[360884282,1747099837598,-400.0,0.00019178,2]
[360884283,1747099837608,-589.08,0.00019178,2]
[360884284,1747099837619,-400.0,0.00019178,2]
[360884285,1747099837629,-474.03,0.00019178,2]
[360884286,1747099837640,-400.0,0.00019178,2]
[360884287,1747099837651,-531.53,0.00019178,2]
[360884288,1747099837662,-400.0,0.00019178,2]
[360884289,1747099837673,-400.0,0.00019178,2]
[360884290,1747099837684,-500.0,0.00019178,2]
[360884291,1747099837695,-400.0,0.00019178,2]
[360884292,1747099837706,-400.0,0.00019178,2]
[360884294,1747099837717,-2964.8,0.00019178,2]
[360884297,1747099837728,-400.0,0.00019178,2]
[360884298,1747099837739,-414.85308739,0.00019178,2]
[360884300,1747099837750,-400.0,0.00019178,2]
[360884302,1747099837760,-1174.88,0.00019178,2]
[360884304,1747099837771,-400.0,0.00019178,2]
[360884305,1747099837783,-431.91,0.00019178,2]
[360884306,1747099837794,-546.88,0.00019178,2]
[360884307,1747099837807,-400.0,0.00019178,2]
[360884308,1747099837818,-1914.01,0.00019178,2]
[360884309,1747099837831,-400.0,0.00019178,2]
[360884310,1747099837842,-815.2,0.00019178,2]
[360884311,1747099837853,-400.0,0.00019178,2]
[360884312,1747099837864,-400.0,0.00019178,2]
[360884313,1747099837875,-507.21,0.00019178,2]
[360884314,1747099837885,-961.06,0.00019178,2]
[360884315,1747099837896,-400.0,0.00019178,2]
[360884316,1747099837907,-453.08,0.00019178,2]
[360884317,1747099837918,-3459.91,0.00019178,2]
[360884318,1747099837928,-530.86210175,0.00019178,2]
[360884319,1747099837938,-400.0,0.00019178,2]
[360884320,1747099837948,-1360.23,0.00019178,2]
[360884321,1747099837959,-400.0,0.00019178,2]
[360884322,1747099837969,-411.21,0.00019178,2]
[360884323,1747099837982,-2252.04,0.00019178,2]
[360884324,1747099837992,-400.0,0.00019178,2]
[360884325,1747099838002,-400.0,0.00019178,2]
[360884326,1747099838012,-400.0,0.00019178,2]
[360884327,1747099838022,-400.0,0.00019178,2]
[360884328,1747099838032,-400.0,0.00019178,2]
[360884329,1747099838042,-400.0,0.00019178,2]
[360884330,1747099838052,-2152.57,0.00019178,2]
[360884331,1747099838062,-400.0,0.00019178,2]
[360884332,1747099838072,-413.27,0.00019178,2]
[360884333,1747099838085,-1672.1,0.00019178,2]
[360884334,1747099838095,-316.127047,0.00019178,2]
[360884335,1747099838105,-316.127047,0.00019178,2]
[360884336,1747099838116,-316.127047,0.00019178,2]
[360884337,1747099838126,-234.55394,0.00019178,2]
[360884338,1747099838136,-400.0,0.00019178,2]
[360884339,1747099838147,-234.55394,0.00019178,2]
[360884340,1747099838157,-234.55394,0.00019178,2]
[360884341,1747099838168,-234.55394,0.00019178,2]
[360884342,1747099838178,-234.55394,0.00019178,2]
[360884343,1747099838189,-234.55394,0.00019178,2]
[360884344,1747099838199,-400.0,0.00019178,2]
[360884345,1747099838211,-234.55394,0.00019178,2]
[360884346,1747099838221,-234.55394,0.00019178,2]
[360884347,1747099838231,-400.0,0.00019178,2]
[360884348,1747099838241,-400.0,0.00019178,2]
[360884349,1747099838252,-794.33,0.00019178,2]
[360884350,1747099838262,-2392.84,0.00019178,2]
[360884351,1747099838273,-400.0,0.00019178,2]
[360884352,1747099838283,-3671.03,0.00019178,2]
[360884353,1747099838294,-400.0,0.00019178,2]
[360884354,1747099838304,-400.0,0.00019178,2]
[360884355,1747099838314,-664.9,0.00019178,2]
[360884356,1747099838324,-2781.52,0.00019178,2]
[360884357,1747099838340,-400.0,0.00019178,2]
[360884358,1747099838350,-400.0,0.00019178,2]
[360884359,1747099838360,-400.0,0.00019178,2]
[360884360,1747099838370,-400.0,0.00019178,2]
[360884361,1747099838380,-1206.82,0.00019178,2]
[360884362,1747099838391,-400.0,0.00019178,2]
[360884363,1747099838401,-400.0,0.00019178,2]
[360884364,1747099838411,-400.0,0.00019178,2]
[360884365,1747099838422,-218.43097398,0.00019178,2]
[360884386,1747099840590,-258.29902602,0.00019178,2]
[360884387,1747099840600,-400.0,0.00019178,2]
[360884388,1747099840609,-400.0,0.00019178,2]
[360884389,1747099840619,-400.0,0.00019178,2]
[360884390,1747099840628,-414.50369214,0.00019178,2]
[360884391,1747099841130,-160.0,0.00019019,3]
[360884392,1747099841139,-120.49630786,0.00019178,2]
[360884393,1747099841148,-400.0,0.00019178,2]
[360884394,1747099841157,-1772.71,0.00019178,2]
[360884395,1747099841166,-388.18807031,0.00019178,2]
[360884397,1747099843091,-11.81192969,0.00019178,2]
[360884398,1747099843101,-251.40854154,0.00019178,2]
[360884409,1747099844029,-531.71145846,0.00019178,2]
[360884410,1747099844039,-400.0,0.00019178,2]
[360884411,1747099844050,-400.0,0.00019178,2]
[360884412,1747099844061,-403.61,0.00019178,2]
[360884413,1747099844072,-431.8,0.00019178,2]
[360884414,1747099844086,-400.0,0.00019178,2]
[360884415,1747099844097,-416.76,0.00019178,2]
[360884416,1747099844107,-1000.0,0.00019178,2]
[360884417,1747099844118,-600.18,0.00019178,2]
[360884418,1747099844128,-400.0,0.00019178,2]
[360884419,1747099844138,-785.35,0.00019178,2]
[360884420,1747099844149,-626.05,0.00019178,2]
[360884421,1747099844160,-400.0,0.00019178,2]
[360884422,1747099844170,-400.0,0.00019178,2]
[360884423,1747099844181,-400.0,0.00019178,2]
[360884424,1747099844191,-713.59,0.00019178,2]
[360884425,1747099844201,-400.0,0.00019178,2]
[360884426,1747099844211,-400.0,0.00019178,2]
[360884427,1747099844222,-400.0,0.00019178,2]
[360884428,1747099844232,-400.0,0.00019178,2]
[360884429,1747099844243,-401.83,0.00019178,2]
[360884430,1747099844253,-496.15,0.00019178,2]
[360884431,1747099844264,-691.81,0.00019178,2]
[360884432,1747099844274,-400.0,0.00019178,2]
[360884433,1747099844284,-400.0,0.00019178,2]
[360884434,1747099844295,-403.37,0.00019178,2]
[360884435,1747099844305,-400.0,0.00019178,2]
[360884436,1747099844316,-400.0,0.00019178,2]
[360884437,1747099844326,-3977.84,0.00019178,2]
[360884438,1747099844339,-400.0,0.00019178,2]
[360884439,1747099844350,-400.0,0.00019178,2]
[360884440,1747099844659,-400.0,0.00019178,2]
[360884441,1747099844683,-400.0,0.00019178,2]
[360884442,1747099844693,-656.51,0.00019178,2]
[360884443,1747099844703,-977.4,0.00019178,2]
[360884444,1747099844713,-4284.38,0.00019178,2]
[360884445,1747099844723,-400.0,0.00019178,2]
[360884446,1747099844732,-400.0,0.00019178,2]
[360884447,1747099844743,-151.0,0.00019178,2]
[360884448,1747099844753,-151.0,0.00019178,2]
[360884449,1747099844763,-151.0,0.00019178,2]
[360884450,1747099844772,-151.0,0.00019178,2]
[360884451,1747099844782,-151.0,0.00019178,2]
[360884452,1747099844792,-151.0,0.00019178,2]
[360884453,1747099844802,-400.0,0.00019178,2]
[360884454,1747099844813,-241.4733835,0.00019178,2]
[360884455,1747099844824,-1048.53,0.00019178,2]
[360884456,1747099844834,-482.47015957,0.00019178,2]
[360884457,1747099844844,-400.0,0.00019178,2]
[360884458,1747099844854,-1599.05,0.00019178,2]
[360884459,1747099844864,-400.0,0.00019178,2]
[360884460,1747099844873,-476.43,0.00019178,2]
[360884461,1747099844883,-151.0,0.00019178,2]
[360884462,1747099844894,-400.0,0.00019178,2]
[360884463,1747099844903,-1412.15,0.00019178,2]
[360884464,1747099844913,-400.0,0.00019178,2]
[360884465,1747099844923,-408.16,0.00019178,2]
[360884466,1747099844933,-1691.32,0.00019178,2]
[360884467,1747099844944,-929.08,0.00019178,2]
[360884468,1747099844955,-720.55,0.00019178,2]
[360884469,1747099844965,-437.5,0.00019178,2]
[360884470,1747099844975,-400.0,0.00019178,2]
[360884471,1747099844987,-653.43,0.00019178,2]
[360884472,1747099844998,-400.0,0.00019178,2]
[360884473,1747099845007,-400.0,0.00019178,2]
[360884474,1747099845019,-400.0,0.00019178,2]
[360884475,1747099845030,-400.0,0.00019178,2]
[360884476,1747099845040,-1251.97,0.00019178,2]
[360884477,1747099845050,-400.0,0.00019178,2]
[360884478,1747099845060,-796.1,0.00019178,2]
[360884479,1747099845070,-400.0,0.00019178,2]
[360884480,1747099845080,-400.0,0.00019178,2]
[360884481,1747099845091,-400.0,0.00019178,2]
[360884482,1747099845100,-268.488418,0.00019178,2]
[360884483,1747099845110,-268.488418,0.00019178,2]
[360884484,1747099845119,-400.0,0.00019178,2]
[360884485,1747099845129,-400.0,0.00019178,2]
[360884486,1747099845138,-268.488418,0.00019178,2]
[360884487,1747099845148,-22454.85,0.00019178,2]
[360884488,1747099845158,-268.488418,0.00019178,2]
[360884489,1747099845167,-268.488418,0.00019178,2]
[360884490,1747099845177,-400.0,0.00019178,2]
[360884491,1747099845188,-400.0,0.00019178,2]
[360884492,1747099845198,-400.0,0.00019178,2]
[360884493,1747099845208,-400.0,0.00019178,2]
[360884494,1747099845217,-268.488418,0.00019178,2]
[360884495,1747099845228,-268.488418,0.00019178,2]
[360884496,1747099845238,-268.488418,0.00019178,2]
[360884497,1747099845248,-268.488418,0.00019178,2]
[360884498,1747099845258,-400.0,0.00019178,2]
[360884499,1747099845268,-268.488418,0.00019178,2]
[360884500,1747099845278,-400.0,0.00019178,2]
[360884501,1747099845288,-400.0,0.00019178,2]
[360884502,1747099845298,-1108.51,0.00019178,2]
[360884503,1747099845308,-400.0,0.00019178,2]
[360884504,1747099845318,-400.0,0.00019178,2]
[360884505,1747099845328,-700.95,0.00019178,2]
[360884506,1747099845338,-400.0,0.00019178,2]
[360884507,1747099845348,-400.0,0.00019178,2]
[360884508,1747099845357,-400.0,0.00019178,2]
[360884509,1747099845368,-400.0,0.00019178,2]
[360884510,1747099845378,-1195.27,0.00019178,2]
[360884511,1747099845387,-382.91508421,0.00019178,2]
[360884512,1747099845396,-585.47,0.00019178,2]
[360884513,1747099845406,-400.0,0.00019178,2]
[360884514,1747099845415,-1318.66,0.00019178,2]
[360884515,1747099845425,-3410.21,0.00019178,2]
[360884516,1747099845435,-400.0,0.00019178,2]
[360884517,1747099845445,-400.0,0.00019178,2]
[360884518,1747099845454,-400.0,0.00019178,2]
[360884519,1747099845464,-1537.93,0.00019178,2]
[360884520,1747099845474,-9580.75,0.00019178,2]
[360884521,1747099845484,-486.41749574,0.00019178,2]
[360884522,1747099845493,-1698.25,0.00019178,2]
[360884523,1747099845503,-400.0,0.00019178,2]
[360884524,1747099845513,-3309.29,0.00019178,2]
[360884525,1747099845523,-151.0,0.00019178,2]
[360884526,1747099845533,-151.0,0.00019178,2]
[360884527,1747099845543,-166.680566,0.00019178,2]
[360884528,1747099845552,-2382.86,0.00019178,2]
[360884529,1747099845563,-400.0,0.00019178,2]
[360884530,1747099845573,-691.42,0.00019178,2]
[360884531,1747099845583,-432.12,0.00019178,2]
[360884532,1747099845595,-3880.37,0.00019178,2]
[360884533,1747099845605,-446.88,0.00019178,2]
[360884534,1747099845615,-400.0,0.00019178,2]
[360884535,1747099845625,-1915.97,0.00019178,2]
[360884536,1747099845634,-1304.27,0.00019178,2]
[360884537,1747099845644,-400.0,0.00019178,2]
[360884538,1747099845654,-1479.54,0.00019178,2]
[360884539,1747099845663,-1229.9,0.00019178,2]